bitfinex-derivatives/quotes_SOLF0:USTF0_20250623
["timestamp","ask_amount","ask_price","bid_price","bid_amount"]
[1750686639507,79.76,136.15,136.06,32.38156948]
[1750686639812,3.27128908,136.14,136.06,7.3467]
[1750686640106,3.27128908,136.14,135.99,79.76]
[1750686640107,112.08460081,136.15,136.02,32.32460081]
[1750686640304,7.3435,136.13,136.09,7.3451]
[1750686640503,112.08460081,136.15,136.05,32.32460081]
[1750686640504,79.76,136.15,136.05,32.32460081]
[1750686640705,79.76,136.15,136.0,2.4294]
[1750686640706,112.08460081,136.15,136.06,4.7356]
[1750686640905,112.08460081,136.15,136.06,12.0826]
[1750686641214,79.76,136.15,136.06,4.7356]
[1750686641411,7.3442,136.12,136.08,7.3457]
[1750686641600,79.76,136.15,136.06,37.06020081]
[1750686642407,32.31590413,136.23,136.11,32.31590413]
[1750686642602,5.75070485,136.22,136.09,32.30154935]
[1750686642807,32.30154935,136.2,136.09,32.30154935]
[1750686643013,79.74,136.19,136.09,32.30154935]
[1750686643309,79.74,136.19,136.08,34.73094935]
[1750686643808,79.74,136.19,136.11,32.30154935]
[1750686644612,79.74,136.19,136.08,2.4294]
[1750686644811,112.04154935,136.19,136.08,34.73094935]
[1750686645115,7.3427,136.15,136.08,34.73094935]
[1750686645308,8.94881926,136.33,136.08,34.73094935]
[1750686645309,22.0014,136.31,136.09,32.31250009]
[1750686645504,22.0014,136.31,136.08,2.4294]
[1750686645505,32.29996754,136.23,136.08,2.4294]
[1750686645805,32.29996754,136.2,136.08,34.72936754]
[1750686646008,32.29996754,136.14,136.06,4.7356]
[1750686646204,79.72,136.13,136.06,4.7356]
[1750686646414,79.72,136.14,136.06,4.7356]
[1750686646614,7.3442,136.12,136.08,7.3457]
[1750686647004,79.72,136.14,136.06,4.7356]
[1750686647609,7.3474,136.06,136.02,7.3489]
[1750686647811,79.7,136.08,136.01,2.2824]
[1750686648009,79.7,136.08,135.99,4.7624]
[1750686648313,7.3474,136.06,136.02,7.3489]
[1750686648502,32.29996754,136.09,135.99,4.7624]
[1750686648702,32.36301563,136.14,136.01,32.36301563]
[1750686648905,32.36301563,136.11,135.99,4.7624]
[1750686649315,32.36301563,136.08,135.99,4.7624]
[1750686649514,112.06301563,136.08,135.99,4.7624]
[1750686650716,7.3493,136.02,135.98,7.3513]
[1750686651017,32.36301563,136.05,135.94,2.3367]
[1750686651208,79.7,136.08,135.94,2.3367]
[1750686651209,7.3507,136.0,135.94,2.3367]
[1750686651607,112.06301563,136.02,135.94,2.3367]
[1750686651812,7.3512,135.99,135.94,2.3367]
[1750686652012,32.36301563,135.99,135.92,2.4683]
[1750686652212,7.3539,135.94,135.85,4.8016]
[1750686652409,112.06301563,135.96,135.86,2.4503]
[1750686652714,7.3542,135.93,135.89,7.3559]
[1750686652919,32.43320883,135.95,135.86,2.4503]
[1750686652920,32.43320883,135.92,135.86,2.4503]
[1750686653120,112.13320883,135.96,135.86,2.4503]
[1750686653318,32.43320883,135.93,135.86,2.4503]
[1750686653618,32.43320883,135.93,135.85,4.8016]
[1750686653808,32.43320883,135.93,135.87,7.357]
[1750686654205,32.43320883,135.93,135.85,4.8016]
[1750686654407,32.45426023,135.91,135.81,2.4503]
[1750686654611,79.72,135.9,135.81,2.4503]
[1750686654819,634.88,135.94,135.81,2.4503]
[1750686655019,32.46237524,135.93,135.81,2.4503]
[1750686655314,634.88,135.94,135.81,2.4503]
[1750686655518,634.88,135.94,135.83,32.46237524]
[1750686655713,79.72,135.96,135.86,32.46237524]
[1750686656111,79.72,135.96,135.83,79.72]
[1750686656112,79.72,135.96,135.89,32.46237524]
[1750686656327,714.62,136.01,135.96,7.3523]
[1750686656615,714.62,136.01,135.92,32.46237524]
[1750686658118,714.62,136.01,135.9,6.9664]
[1750686658323,7.3535,135.95,135.9,14.322]
[1750686658525,32.46237524,135.99,135.9,6.9664]
[1750686659218,714.62,136.01,135.9,6.9664]
[1750686659419,714.62,136.01,135.9,39.42877524]
[1750686659716,714.62,136.01,135.93,7.354]
[1750686659920,714.62,136.01,135.9,6.9664]
[1750686660120,7.3529,135.96,135.91,7.3549]
[1750686660317,205.5,135.98,135.9,6.9664]
[1750686660914,79.76,136.05,135.9,86.7264]
[1750686661116,79.76,136.05,135.95,32.46237524]
[1750686661313,32.39799131,136.03,135.9,6.9664]
[1750686661617,32.39799131,136.0,135.9,6.9664]
[1750686661820,79.76,135.99,135.9,6.9664]
[1750686662327,79.76,135.99,135.89,7.3563]
[1750686662328,285.14,135.99,135.89,7.3563]
[1750686662520,285.14,135.99,135.84,32.40821359]
[1750686662521,32.40821359,135.96,135.84,32.40821359]
[1750686662931,952.66821359,135.99,135.87,32.40821359]
[1750686663225,920.26,135.99,135.87,32.40821359]
[1750686663424,32.40821359,135.97,135.85,32.40821359]
[1750686663628,920.26,135.99,135.85,32.40821359]
[1750686663822,920.26,135.99,135.86,32.40821359]
[1750686664017,32.41736925,135.98,135.85,32.41736925]
[1750686664222,952.67736925,135.99,135.85,32.41736925]
[1750686664417,714.86,135.99,135.88,32.41736925]
[1750686664815,714.86,135.99,135.91,7.3548]
[1750686665018,32.41736925,135.97,135.86,32.41736925]
[1750686665219,714.86,135.99,135.85,62.0]
[1750686665415,32.42211611,135.98,135.9,7.3556]
[1750686665615,32.42211611,135.95,135.85,32.42211611]
[1750686665921,237.60211611,135.95,135.88,7.3565]
[1750686666125,237.60211611,135.95,135.83,32.42211611]
[1750686666325,205.18,135.95,135.86,21.03316131]
[1750686666514,21.03316131,135.98,135.86,21.03316131]
[1750686666515,78.58,136.07,135.94,21.03316131]
[1750686666714,20.99187023,136.08,135.97,20.99187023]
[1750686666915,20.99112741,136.08,135.95,7.3209]
[1750686667117,20.99112741,136.06,135.96,20.99112741]
[1750686667422,78.58,136.1,135.96,20.99112741]
[1750686667622,20.99112741,136.08,135.96,20.99112741]
[1750686667926,78.58,136.1,135.98,7.3512]
[1750686667927,20.99112741,136.06,135.98,7.3512]
[1750686668118,20.99112741,136.04,135.95,7.3209]
[1750686668318,21.00946884,136.0,135.9,656.20946884]
[1750686668520,7.3523,135.97,135.89,4.6284]
[1750686668724,205.04,136.03,135.9,21.01637566]
[1750686668927,21.01637566,136.02,135.9,21.01637566]
[1750686669123,21.01637566,136.02,135.92,21.01637566]
[1750686669826,21.01016282,136.0,135.89,25.63856282]
[1750686670025,21.01016282,135.98,135.89,4.6284]
[1750686670232,21.01016282,135.96,135.89,4.6284]
[1750686670635,21.01016282,135.94,135.84,78.56]
[1750686670931,225.91389618,135.96,135.84,21.03389618]
[1750686671131,21.03631306,135.93,135.83,21.03631306]
[1750686671632,21.03255088,135.95,135.84,21.03255088]
[1750686672123,7.3547,135.92,135.84,21.03255088]
[1750686672322,21.03255088,135.95,135.84,21.03255088]
[1750686672520,21.03255088,135.95,135.82,62.0]
[1750686672521,21.03385605,135.94,135.83,21.03385605]
[1750686672723,21.03385605,135.92,135.81,27.94735605]
[1750686673030,78.58,135.91,135.81,27.94735605]
[1750686673333,21.03385605,135.9,135.83,7.3593]
[1750686673720,21.03385605,135.9,135.82,7.3599]
[1750686673928,21.03385605,135.9,135.81,6.9135]
[1750686673929,21.03385605,135.84,135.68,14.7351]
[1750686674134,21.07068675,135.79,135.74,7.3639]
[1750686674425,21.08165464,135.79,135.7,7.1008]
[1750686674631,21.08165464,135.79,135.71,7.3657]
[1750686674828,21.08165464,135.79,135.7,7.1008]
[1750686674829,21.08165464,135.77,135.7,4.78]
[1750686675027,78.58,135.77,135.7,2.2823]
[1750686675825,21.08165464,135.76,135.65,66.8185]
[1750686676026,21.08165464,135.76,135.65,90.18245464]
[1750686676221,7.3651,135.73,135.65,28.18245464]
[1750686676425,21.08165464,135.76,135.65,28.18245464]
[1750686676627,21.08165464,135.82,135.71,21.08165464]
[1750686676929,78.58,135.81,135.71,21.08165464]
[1750686677229,7.3612,135.8,135.76,7.3631]
[1750686677442,78.58,135.81,135.65,7.1008]
[1750686677932,21.08165464,135.8,135.69,21.08165464]
[1750686678126,21.08165464,135.78,135.67,21.08165464]
[1750686678935,7.3644,135.74,135.7,7.3662]
[1750686679131,78.62,135.75,135.65,7.1008]
[1750686679331,78.62,135.75,135.71,7.3657]
[1750686679524,78.62,135.75,135.66,21.08165464]
[1750686679931,78.62,135.75,135.7,7.3662]
[1750686680127,78.62,135.75,135.65,7.1008]
[1750686680428,7.3645,135.74,135.65,28.18245464]
[1750686680738,36.7857,135.96,135.65,21.8389]
[1750686680943,7.3601,135.82,135.74,21.08457765]
[1750686681139,635.28,135.84,135.78,21.08457765]
[1750686681436,635.28,135.84,135.81,7.3601]
[1750686681629,635.28,135.84,135.77,21.05427091]
[1750686683040,642.6391,135.84,135.77,21.05427091]
[1750686683436,635.28,135.84,135.77,21.05427091]
[1750686683740,635.28,135.84,135.71,62.0]
[1750686683937,635.28,135.84,135.77,21.05427091]
[1750686684837,656.87427091,135.91,135.81,21.05427091]
[1750686685034,282.86,135.9,135.81,21.05427091]
[1750686685434,7.3568,135.88,135.84,7.3586]
[1750686685838,7.3565,135.89,135.85,7.3585]
[1750686686037,282.86,135.9,135.81,21.05427091]
[1750686686638,78.66,135.9,135.83,21.05427091]
[1750686686943,78.66,135.9,135.77,7.2591]
[1750686687145,21.05427091,135.89,135.8,21.05427091]
[1750686687437,7.3572,135.88,135.84,7.3588]
[1750686687642,78.66,135.9,135.82,21.05427091]
[1750686688144,78.66,135.9,135.84,21.05427091]
[1750686688745,203.96,135.94,135.86,21.05427091]
[1750686688947,211.3137,135.94,135.9,7.3554]
[1750686689243,78.66,135.96,135.88,21.05427091]
[1750686689441,78.66,135.96,135.9,21.05427091]
[1750686690041,78.64,136.02,135.92,21.05427091]
[1750686690242,78.64,136.02,135.8,21.05427091]
[1750686690243,635.72,136.13,135.9,21.00496826]
[1750686690544,7.3491,136.03,135.98,7.3511]
[1750686691043,7.3488,136.03,135.98,7.3511]
[1750686691439,78.64,136.05,135.96,21.00496826]
[1750686691750,78.64,136.05,135.98,21.00496826]
[1750686692242,78.64,136.05,135.91,85.7364]
[1750686692551,78.64,136.05,135.96,20.98874638]
[1750686692845,85.9878,136.05,136.0,7.35]
[1750686693046,78.64,136.05,135.99,20.98590437]
[1750686693349,78.64,136.05,136.02,7.349]
[1750686693644,85.9653,136.1,136.01,20.98590437]
[1750686693950,20.98590437,136.16,136.05,20.98590437]
[1750686694148,7.3451,136.1,136.02,20.98590437]
[1750686694342,20.97629316,136.15,136.04,20.97629316]
[1750686694544,20.97629316,136.11,136.01,4.575]
[1750686694748,20.97629316,136.09,136.0,2.4885]
[1750686694949,20.97629316,136.07,136.0,9.8385]
[1750686695160,20.97629316,136.07,136.0,2.4885]
[1750686695455,8.64488813,136.09,136.0,2.4885]
[1750686695456,20.97629316,136.09,136.03,7.3486]
[1750686695660,20.97629316,136.09,136.0,23.46479316]
[1750686695957,7.3469,136.07,136.02,7.3488]
[1750686696160,78.62,136.1,136.0,2.4885]
[1750686696460,20.97629316,136.09,136.01,7.3494]
[1750686696663,20.97629316,136.09,136.0,2.4885]
[1750686696956,20.97629316,136.07,135.95,4.6607]
[1750686697160,20.97629316,136.07,135.96,20.97629316]
[1750686697361,20.97629316,136.05,135.95,28.10079316]
[1750686697748,7.3497,136.02,135.98,7.3513]
[1750686698059,8.67992865,136.09,135.95,28.10079316]
[1750686698358,7.3492,136.03,135.95,28.10079316]
[1750686698958,657.39,136.18,135.99,20.99393149]
[1750686699158,20.99393149,136.11,135.99,20.99393149]
[1750686699358,20.98447961,136.06,135.99,7.3509]
[1750686699660,98.09089438,136.08,135.97,20.99089438]
[1750686699851,20.99089438,136.08,136.03,7.3487]
[1750686700053,20.99089438,136.08,135.96,2.3895]
[1750686700054,77.1,136.09,135.99,20.99089438]
[1750686700455,77.1,136.09,136.01,20.99089438]
[1750686700758,77.1,136.09,136.03,20.99089438]
[1750686700953,77.1,136.09,136.01,20.99089438]
[1750686701158,7.3461,136.08,136.01,20.99089438]
[1750686701556,98.08046087,136.09,135.99,77.1]
[1750686701767,20.98046087,136.07,135.97,20.98046087]
[1750686701960,20.98046087,136.07,135.96,2.3895]
[1750686702157,20.98046087,136.05,135.96,2.3895]
[1750686702664,7.3498,136.01,135.96,2.3895]
[1750686702866,20.98046087,136.03,135.96,2.3895]
[1750686703067,98.08046087,136.03,135.95,2.3176]
[1750686703269,20.98046087,136.01,135.9,102.76456087]
[1750686703664,7.3504,136.0,135.92,21.01277157]
[1750686703859,77.1,136.03,135.96,21.01277157]
[1750686704368,7.3474,136.06,135.96,77.08]
[1750686704562,733.09277157,136.09,136.01,7.3496]
[1750686704764,20.99082336,136.08,135.97,2.3457]
[1750686705157,20.99082336,136.08,135.97,9.6976]
[1750686705362,20.99082336,136.06,135.97,2.3457]
[1750686705769,20.99082336,136.01,135.9,4.6841]
[1750686706060,20.99082336,135.97,135.9,4.6841]
[1750686706261,7.3523,135.97,135.9,4.6841]
[1750686706472,20.99082336,136.0,135.9,4.6841]
[1750686706968,20.99082336,135.98,135.9,4.6841]
[1750686707168,20.99082336,135.96,135.87,23.33652336]
[1750686707368,7.3553,135.91,135.87,2.3457]
[1750686707569,20.99082336,135.94,135.87,2.3457]
[1750686708069,20.99082336,135.94,135.85,2.2948]
[1750686708276,20.99082336,135.92,135.85,2.2948]
[1750686708769,77.1,135.95,135.85,2.2948]
[1750686708967,20.99082336,135.92,135.83,77.1]
[1750686709162,20.99082336,135.92,135.82,2.3566]
[1750686709569,7.3577,135.87,135.82,2.3566]
[1750686709770,20.99082336,135.92,135.82,9.7166]
[1750686710271,7.3579,135.87,135.82,9.7166]
[1750686710458,20.99082336,135.9,135.82,2.3566]
[1750686710766,20.99082336,135.88,135.82,2.3566]
[1750686710960,20.99082336,135.88,135.81,2.4698]
[1750686711162,20.99082336,135.86,135.78,2.2924]
[1750686711366,20.99082336,135.84,135.77,2.441]
[1750686711566,20.99082336,135.86,135.77,2.441]
[1750686712066,202.08,135.88,135.77,2.441]
[1750686712365,20.99082336,135.85,135.77,2.441]
[1750686712567,20.99082336,135.83,135.75,2.2924]
[1750686713269,20.99082336,135.81,135.75,2.2924]
[1750686713669,7.3633,135.76,135.75,2.2924]
[1750686713969,20.99082336,135.81,135.71,2.2544]
[1750686714159,20.99082336,135.81,135.75,7.3639]
[1750686714467,20.99082336,135.81,135.72,20.99082336]
[1750686714871,7.3619,135.79,135.72,20.99082336]
[1750686715267,7.3641,135.75,135.71,2.2544]
[1750686715468,20.99082336,135.79,135.71,2.2544]
[1750686715676,20.99082336,135.77,135.71,2.2544]
[1750686716063,7.3649,135.74,135.71,2.2544]
[1750686716267,20.99082336,135.75,135.68,4.8876]
[1750686716467,7.365,135.73,135.68,4.8876]
[1750686716779,635.56,135.81,135.71,21.08474666]
[1750686716977,84.5203,135.82,135.73,21.08474666]
[1750686717168,77.16,135.82,135.73,21.08474666]
[1750686717368,77.16,135.82,135.72,21.06681426]
[1750686717564,7.3621,135.79,135.74,7.3641]
[1750686717874,21.06681426,135.81,135.71,77.16]
[1750686718072,21.06681426,135.79,135.71,77.16]
[1750686718267,21.06681426,135.79,135.72,7.3652]
[1750686718473,21.06681426,135.79,135.71,77.16]
[1750686718671,7.3625,135.78,135.73,7.365]
[1750686718970,21.06681426,135.81,135.69,62.0]
[1750686719175,7.3612,135.8,135.76,7.3633]
[1750686719371,21.07199294,135.79,135.7,21.07199294]
[1750686719677,21.07199294,135.79,135.68,103.11959294]
[1750686719974,21.07199294,135.8,135.68,103.11959294]
[1750686720171,21.07199294,135.76,135.68,2.393]
[1750686720375,18.98053171,135.75,135.66,2.2987]
[1750686720576,77.18,135.78,135.68,18.98053171]
[1750686720778,7.3635,135.76,135.71,7.3661]
[1750686720979,18.98053171,135.77,135.66,21.27923171]
[1750686721271,7.3656,135.72,135.68,7.3675]
[1750686721479,18.98177297,135.71,135.64,2.4864]
[1750686721676,77.18,135.72,135.64,2.4864]
[1750686721971,635.7,135.79,135.65,18.99303993]
[1750686722274,18.99303993,135.77,135.67,18.99303993]
[1750686722668,18.99303993,135.75,135.65,62.0]
[1750686722975,18.99303993,135.73,135.64,2.4864]
[1750686723177,96.19303993,135.73,135.64,2.4864]
[1750686724475,96.19303993,135.73,135.64,21.47943993]
[1750686724771,96.19303993,135.73,135.64,2.4864]
[1750686725076,18.99303993,135.71,135.6,640.401]
[1750686725279,18.99303993,135.71,135.6,659.39403993]
[1750686725574,18.99303993,135.71,135.62,18.99303993]
[1750686725775,7.3667,135.7,135.66,7.3684]
[1750686725972,77.2,135.73,135.62,80.99303993]
[1750686726273,96.19303993,135.73,135.62,18.99303993]
[1750686726479,18.99303993,135.71,135.62,18.99303993]
[1750686726672,18.99303993,135.71,135.61,18.99303993]
[1750686726871,18.99303993,135.71,135.66,7.3688]
[1750686727073,96.19303993,135.73,135.63,18.99303993]
[1750686727276,635.7,135.79,135.67,18.99303993]
[1750686727580,18.99303993,135.79,135.6,714.78272925]
[1750686727780,18.99303993,135.75,135.64,21.25083993]
[1750686728379,26.35693993,135.75,135.66,18.99303993]
[1750686728584,18.99303993,135.75,135.64,2.2578]
[1750686728877,18.99303993,135.75,135.65,18.99303993]
[1750686729273,94.49953912,135.76,135.66,62.0]
[1750686729472,82.8835,135.76,135.66,62.0]
[1750686729677,75.52,135.76,135.66,62.0]
[1750686729979,7.3632,135.77,135.68,21.08440263]
[1750686730170,21.08440263,135.8,135.69,2.2806]
[1750686730369,21.08440263,135.8,135.7,21.08440263]
[1750686730575,7.3621,135.79,135.75,7.3635]
[1750686730776,21.08440263,135.8,135.7,23.36170263]
[1750686731173,96.60440263,135.82,135.72,21.08440263]
[1750686731372,96.60440263,135.82,135.73,2.2997]
[1750686731373,75.52,135.82,135.73,2.2997]
[1750686731569,75.52,135.82,135.74,21.08440263]
[1750686732790,21.08440263,135.86,135.76,21.08440263]
[1750686733170,711.56,135.87,135.78,21.08440263]
[1750686733371,711.56,135.87,135.8,21.08440263]
[1750686733581,75.52,135.87,135.8,21.08440263]
[1750686733782,82.8777,135.87,135.83,7.3591]
[1750686733983,82.8777,135.87,135.8,21.08440263]
[1750686734179,75.52,135.87,135.8,21.08440263]
[1750686734373,82.8774,135.87,135.83,7.3591]
[1750686734574,75.52,135.87,135.79,21.08440263]
[1750686734777,21.08440263,135.92,135.8,4.7528]
[1750686734979,21.08440263,135.9,135.8,4.7528]
[1750686735373,7.3577,135.87,135.83,7.3591]
[1750686735578,21.08440263,135.9,135.83,7.3591]
[1750686735780,75.52,135.93,135.8,4.7528]
[1750686735781,21.04693523,135.89,135.8,4.7528]
[1750686735974,21.04693523,135.89,135.71,14.7317]
[1750686735975,75.52,135.93,135.63,22.1102]
[1750686736176,75.52,135.93,135.7,4.9454]
[1750686736177,21.0622816,135.8,135.7,4.9454]
[1750686736383,21.0622816,135.78,135.7,4.9454]
[1750686736580,21.0622816,135.79,135.7,4.9454]
[1750686737181,75.52,135.8,135.7,4.9454]
[1750686737182,21.0622816,135.77,135.7,4.9454]
[1750686737373,21.0622816,135.77,135.72,7.3655]
[1750686737577,21.0622816,135.75,135.64,78.0128]
[1750686737888,96.5822816,135.8,135.62,636.04]
[1750686737889,21.0622816,135.71,135.65,7.369]
[1750686738184,21.0622816,135.71,135.62,23.5333816]
[1750686738185,21.0622816,135.69,135.62,2.4711]
[1750686738574,75.5,135.72,135.62,2.4711]
[1750686738788,21.0622816,135.71,135.62,2.4711]
[1750686738988,18.99929964,135.69,135.62,2.4711]
[1750686739184,18.99929964,135.69,135.6,2.4509]
[1750686739487,18.99929964,135.69,135.65,7.3689]
[1750686739685,18.99929964,135.69,135.6,2.4509]
[1750686740087,636.1,135.82,135.6,17.1948]
[1750686740286,18.99545542,135.79,135.67,18.99545542]
[1750686740684,21.08661484,135.77,135.67,21.08661484]
[1750686740886,75.52,135.81,135.65,75.52]
[1750686741186,75.52,135.81,135.72,18.98162891]
[1750686741991,75.52,135.81,135.74,18.98162891]
[1750686742190,75.52,135.88,135.79,18.98162891]
[1750686742487,75.52,135.88,135.74,62.0]
[1750686742488,94.50162891,135.88,135.77,18.98162891]
[1750686742679,101.85852891,135.88,135.84,7.3587]
[1750686742880,75.52,135.88,135.81,18.98162891]
[1750686743387,94.48162891,135.93,135.83,18.98162891]
[1750686743582,75.5,135.93,135.85,18.98162891]
[1750686744084,636.02,135.97,135.87,18.98162891]
[1750686744288,636.02,135.97,135.91,7.3552]
[1750686744486,75.5,136.01,135.84,636.02]
[1750686744785,7.3526,135.96,135.87,32.4198481]
[1750686744988,32.4198481,135.99,135.87,32.4198481]
[1750686745290,7.3539,135.94,135.89,7.3559]
[1750686745483,7.3539,135.94,135.85,110.3579481]
[1750686745484,32.4198481,135.96,135.85,77.9381]
[1750686745890,8.43688105,136.0,135.87,32.4198481]
[1750686746187,3.15629999,136.0,135.9,32.4198481]
[1750686746591,75.5,136.01,135.9,94.4198481]
[1750686746792,75.5,136.01,135.98,7.351]
[1750686746986,75.5,136.01,135.93,32.4198481]
[1750686747790,75.5,136.01,135.97,7.3516]
[1750686747995,75.5,136.01,135.91,110.11898707]
[1750686748294,75.5,136.01,135.9,62.0]
[1750686748481,32.38628707,135.99,135.9,7.3556]
[1750686748680,32.38628707,135.99,135.86,34.68688707]
[1750686748894,7.3529,135.96,135.9,7.3553]
[1750686749082,3.15968699,135.99,135.89,32.38628707]
[1750686749283,3.15968699,136.0,135.89,32.38628707]
[1750686749483,3.15968699,135.99,135.89,32.38628707]
[1750686749687,3.15968699,136.0,135.89,32.38628707]
[1750686749884,7.3526,135.96,135.91,7.3552]
[1750686750093,3.15968699,135.98,135.86,2.3006]
[1750686750289,75.5,136.01,135.86,34.68688707]
[1750686750290,3.15968699,135.97,135.86,34.68688707]
[1750686750483,3.15968699,135.98,135.86,34.68688707]
[1750686750689,32.38628707,135.96,135.86,2.3006]
[1750686750902,32.38628707,135.93,135.77,635.6]
[1750686751090,32.38628707,135.9,135.78,4.7198]
[1750686751388,7.3583,135.86,135.81,7.3602]
[1750686751590,32.38628707,135.87,135.78,4.7198]
[1750686752392,75.46,135.89,135.78,37.10608707]
[1750686752896,7.357,135.88,135.83,7.3594]
[1750686753294,75.46,135.89,135.78,37.10608707]
[1750686753497,75.46,135.89,135.81,32.38628707]
[1750686755591,75.46,135.89,135.8,32.38628707]
[1750686755795,75.46,135.89,135.79,32.38628707]
[1750686756298,75.46,135.89,135.84,7.3589]
[1750686756505,75.46,135.89,135.79,32.38628707]
[1750686756697,75.46,135.89,135.84,7.3588]
[1750686757000,75.46,135.89,135.79,32.38628707]
[1750686757701,75.46,135.89,135.81,32.38628707]
[1750686757894,7.3572,135.88,135.78,4.7198]
[1750686758095,7.3572,135.88,135.79,32.38628707]
[1750686758403,75.46,135.89,135.79,32.38628707]
[1750686758792,75.46,135.89,135.86,7.3574]
[1750686758993,75.46,135.89,135.81,32.38628707]
[1750686759300,7.3583,135.86,135.81,7.3603]
[1750686759495,32.38628707,135.88,135.78,2.3037]
[1750686759691,32.38628707,135.88,135.76,2.2809]
[1750686759692,3.17238273,135.88,135.76,2.2809]
[1750686759896,7.3604,135.82,135.78,7.3621]
[1750686760105,32.38628707,135.85,135.73,76.0607]
[1750686760494,32.38628707,135.85,135.78,7.3619]
[1750686760700,32.38628707,135.82,135.71,4.8152]
[1750686760902,7.3625,135.78,135.74,7.3644]
[1750686761204,73.6,135.81,135.71,2.3308]
[1750686761600,80.9611,135.81,135.71,2.3308]
[1750686761800,73.6,135.81,135.71,2.3308]
[1750686762003,80.9609,135.81,135.77,7.3627]
[1750686762202,635.62,135.87,135.73,32.38628707]
[1750686762402,109.18506088,135.86,135.72,2.325]
[1750686762603,32.38628707,135.83,135.76,7.3632]
[1750686762796,32.38628707,135.83,135.72,2.325]
[1750686762996,32.38628707,135.83,135.71,2.3308]
[1750686763304,3.19877381,135.85,135.71,2.3308]
[1750686763499,635.62,135.87,135.75,32.38628707]
[1750686763700,635.62,135.87,135.78,32.38628707]
[1750686764005,635.62,135.87,135.76,4.7833]
[1750686764194,635.62,135.87,135.76,37.16958707]
[1750686764794,7.3594,135.84,135.76,37.16958707]
[1750686765001,32.38628707,135.86,135.76,34.71128707]
[1750686765196,73.62,135.93,135.8,32.46321291]
[1750686765397,35.63343659,135.92,135.8,32.44722193]
[1750686765907,32.44722193,135.9,135.77,94.44722193]
[1750686766400,7.3583,135.86,135.77,83.05507703]
[1750686766601,73.62,135.87,135.81,21.05507703]
[1750686767401,73.62,135.93,135.83,21.05507703]
[1750686767603,635.84,135.95,135.83,21.05507703]
[1750686767796,73.62,135.94,135.85,21.05507703]
[1750686767995,73.62,135.94,135.87,21.05507703]
[1750686768199,80.9736,135.94,135.9,7.3554]
[1750686768395,14.6937,136.07,135.9,21.02353639]
[1750686768600,21.02353639,136.02,135.9,21.02353639]
[1750686768799,21.01543038,135.98,135.86,21.01543038]
[1750686769004,73.62,135.97,135.86,21.01543038]
[1750686769210,80.9729,135.96,135.92,7.3546]
[1750686769402,73.62,135.96,135.92,7.3546]
[1750686769594,73.62,135.96,135.88,21.01543038]
[1750686769792,73.62,135.96,135.93,7.3538]
[1750686770205,73.62,135.96,135.88,21.01543038]
[1750686770499,80.9728,135.96,135.88,21.01543038]
[1750686770704,21.01543038,135.95,135.85,21.01543038]
[1750686771701,7.3548,135.92,135.88,7.3565]
[1750686772006,21.01543038,135.95,135.83,21.01543038]
[1750686772205,21.01543038,135.93,135.83,21.01543038]
[1750686772402,21.01543038,135.91,135.81,23.42363038]
[1750686772602,76.81242276,135.95,135.84,21.04493629]
[1750686772910,7.355,135.92,135.87,7.3569]
[1750686773112,21.04493629,135.94,135.84,21.04493629]
[1750686773608,24.25740788,135.94,135.84,21.04493629]
[1750686773813,21.04316454,135.91,135.81,23.45136454]
[1750686774211,21.04316454,135.91,135.81,2.4082]
[1750686774905,21.04316454,135.89,135.8,2.4165]
[1750686775105,73.6,135.88,135.8,2.4165]
[1750686775507,7.3577,135.87,135.83,7.3592]
[1750686775908,7.3577,135.87,135.8,2.4165]
[1750686776103,73.6,135.88,135.81,21.04933619]
[1750686776305,73.6,135.88,135.83,21.04933619]
[1750686776805,73.6,135.88,135.86,7.3575]
[1750686777012,73.6,135.88,135.83,21.04933619]
[1750686777612,73.6,135.88,135.86,7.3574]
[1750686778503,73.6,135.88,135.83,21.04933619]
[1750686779209,73.6,135.88,135.8,2.4165]